[Event "*** SCC Grand Prix: Titled Tuesday Blitz"]
[Site "Chess.com"]
[Date "2020.06.02"]
[Round "7"]
[White "OparinGrigoriy"]
[Black "Sibelephant"]
[Result "1/2-1/2"]
[WhiteElo "2928"]
[BlackElo "3158"]
[TimeControl "180+1"]
[EndTime "11:19:36 PDT"]
[Termination "Game drawn by agreement"]

1. Nf3 {[%clk 0:03:00.9]} 1... g6 {[%clk 0:02:55.7]} 2. e4 {[%clk 0:03:00.6]}
2... d6 {[%clk 0:02:54.8]} 3. d4 {[%clk 0:03:00.8]} 3... Nf6 {[%clk 0:02:55.4]}
4. Bd3 {[%clk 0:03:00.6]} 4... Bg7 {[%clk 0:02:55.7]} 5. O-O {[%clk 0:03:00.8]}
5... O-O {[%clk 0:02:56.4]} 6. Re1 {[%clk 0:02:59.8]} 6... Nc6 {[%clk
0:02:54.6]} 7. c3 {[%clk 0:02:59.3]} 7... e5 {[%clk 0:02:53.6]} 8. h3 {[%clk
0:02:59.6]} 8... h6 {[%clk 0:02:46]} 9. Na3 {[%clk 0:02:59.1]} 9... Nh5 {[%clk
0:02:42.2]} 10. Be3 {[%clk 0:02:53.2]} 10... Qf6 {[%clk 0:02:42.3]} 11. Nb5
{[%clk 0:02:48.7]} 11... Qe7 {[%clk 0:02:41.5]} 12. dxe5 {[%clk 0:02:23.3]}
12... dxe5 {[%clk 0:02:25.3]} 13. b4 {[%clk 0:02:23.7]} 13... b6 {[%clk
0:02:10.4]} 14. a4 {[%clk 0:02:23.6]} 14... Rd8 {[%clk 0:02:05.4]} 15. Qc2
{[%clk 0:02:16.3]} 15... a6 {[%clk 0:02:05.7]} 16. Na3 {[%clk 0:02:15.9]} 16...
Qf6 {[%clk 0:02:06]} 17. Nh2 {[%clk 0:02:02.7]} 17... Nf4 {[%clk 0:02:02.6]} 18.
Bf1 {[%clk 0:02:02.8]} 18... h5 {[%clk 0:01:56.2]} 19. Rad1 {[%clk 0:01:44.9]}
19... Be6 {[%clk 0:01:43.8]} 20. Rxd8+ {[%clk 0:01:35]} 20... Qxd8 {[%clk
0:01:40.8]} 21. Rd1 {[%clk 0:01:32.8]} 21... Qf6 {[%clk 0:01:33.4]} 22. Nc4
{[%clk 0:01:15.7]} 22... Qg5 {[%clk 0:01:05.6]} 23. Kh1 {[%clk 0:01:13.2]} 23...
Bxc4 {[%clk 0:01:04.6]} 24. Bxf4 {[%clk 0:01:10.6]} 24... exf4 {[%clk
0:01:04.8]} 25. Bxc4 {[%clk 0:01:11]} 25... Ne5 {[%clk 0:01:01.8]} 26. Nf3
{[%clk 0:01:02.3]} 26... Nxf3 {[%clk 0:01:00.2]} 27. gxf3 {[%clk 0:01:03.2]}
27... b5 {[%clk 0:00:51.6]} 28. Bb3 {[%clk 0:00:52.7]} 28... Rd8 {[%clk
0:00:44.1]} 29. Rxd8+ {[%clk 0:00:51.2]} 29... Qxd8 {[%clk 0:00:44.1]} 30. axb5
{[%clk 0:00:51.2]} 30... axb5 {[%clk 0:00:43.8]} 31. c4 {[%clk 0:00:51.5]} 31...
Qd6 {[%clk 0:00:23.7]} 32. cxb5 {[%clk 0:00:43.1]} 32... Qxb4 {[%clk 0:00:23.8]}
33. Qc4 {[%clk 0:00:39.4]} 33... Qxc4 {[%clk 0:00:16.7]} 34. Bxc4 {[%clk
0:00:39.4]} 1/2-1/2

[Event "*** SCC Grand Prix: Titled Tuesday Blitz"]
[Site "Chess.com"]
[Date "2020.06.02"]
[Round "7"]
[White "BilodeauA"]
[Black "fodorpoti"]
[Result "0-1"]
[WhiteElo "2888"]
[BlackElo "2776"]
[TimeControl "180+1"]
[EndTime "11:19:46 PDT"]
[Termination "fodorpoti won by resignation"]

1. e4 {[%clk 0:03:00.9]} 1... e6 {[%clk 0:03:00.3]} 2. d4 {[%clk 0:03:00.7]}
2... d5 {[%clk 0:03:00.6]} 3. Nd2 {[%clk 0:03:01.4]} 3... Nc6 {[%clk 0:03:00.4]}
4. Ngf3 {[%clk 0:03:00]} 4... Nf6 {[%clk 0:03:00.3]} 5. e5 {[%clk 0:03:00.2]}
5... Nd7 {[%clk 0:03:00.2]} 6. c3 {[%clk 0:03:00.9]} 6... f6 {[%clk 0:02:59.8]}
7. Bb5 {[%clk 0:03:01.3]} 7... fxe5 {[%clk 0:02:57.1]} 8. dxe5 {[%clk
0:03:02.2]} 8... Be7 {[%clk 0:02:56.8]} 9. O-O {[%clk 0:03:02.4]} 9... O-O
{[%clk 0:02:56.5]} 10. Re1 {[%clk 0:03:03.1]} 10... Qe8 {[%clk 0:02:55.2]} 11.
Nf1 {[%clk 0:02:59.1]} 11... Qf7 {[%clk 0:02:52.3]} 12. Ng3 {[%clk 0:02:56.3]}
12... Nc5 {[%clk 0:02:51.9]} 13. b4 {[%clk 0:02:39.8]} 13... Nd7 {[%clk
0:02:50.1]} 14. Bd3 {[%clk 0:02:39.5]} 14... a5 {[%clk 0:02:40.1]} 15. b5 {[%clk
0:02:37.1]} 15... Nd8 {[%clk 0:02:39.8]} 16. Be3 {[%clk 0:02:36.8]} 16... g6
{[%clk 0:02:33.9]} 17. c4 {[%clk 0:02:32.8]} 17... Nc5 {[%clk 0:02:30.4]} 18.
Bf1 {[%clk 0:02:21.5]} 18... b6 {[%clk 0:02:29.8]} 19. cxd5 {[%clk 0:02:12.1]}
19... exd5 {[%clk 0:02:28.1]} 20. Qd2 {[%clk 0:02:09.1]} 20... Bb7 {[%clk
0:02:25.3]} 21. Nd4 {[%clk 0:01:57]} 21... Nde6 {[%clk 0:02:24.7]} 22. Rac1
{[%clk 0:01:56.7]} 22... Nxd4 {[%clk 0:02:21.7]} 23. Bxd4 {[%clk 0:01:36.4]}
23... Ne6 {[%clk 0:02:21.3]} 24. f3 {[%clk 0:01:23.8]} 24... Bb4 {[%clk
0:02:14.2]} 25. Bc3 {[%clk 0:01:21]} 25... Bc5+ {[%clk 0:02:14.4]} 26. Kh1
{[%clk 0:01:21.6]} 26... Rae8 {[%clk 0:02:12.3]} 27. Qh6 {[%clk 0:01:12.9]}
27... Nf4 {[%clk 0:02:02.9]} 28. Bd2 {[%clk 0:01:09.9]} 28... Ne6 {[%clk
0:01:59.8]} 29. Bd3 {[%clk 0:01:07.5]} 29... Qg7 {[%clk 0:01:59.7]} 30. Ne2
{[%clk 0:01:02.5]} 30... Bb4 {[%clk 0:01:48.2]} 31. Qxg7+ {[%clk 0:00:38.4]}
31... Kxg7 {[%clk 0:01:49.1]} 32. Red1 {[%clk 0:00:39.1]} 32... Nc5 {[%clk
0:01:40.4]} 33. Be3 {[%clk 0:00:36]} 33... Kg8 {[%clk 0:01:33]} 34. Bd4 {[%clk
0:00:34.3]} 34... Ne6 {[%clk 0:01:33.3]} 35. Bf2 {[%clk 0:00:32.1]} 35... Rf7
{[%clk 0:01:30.7]} 36. Kg1 {[%clk 0:00:31]} 36... Bc5 {[%clk 0:01:29.1]} 37.
Bxc5 {[%clk 0:00:21.6]} 37... bxc5 {[%clk 0:01:30]} 38. Bc2 {[%clk 0:00:18.5]}
38... c4 {[%clk 0:01:29]} 39. b6 {[%clk 0:00:14]} 39... cxb6 {[%clk 0:01:20.2]}
40. Rb1 {[%clk 0:00:14.1]} 40... Nc5 {[%clk 0:01:17.4]} 41. Rxb6 {[%clk
0:00:14]} 41... Rxe5 {[%clk 0:01:17.9]} 42. Nd4 {[%clk 0:00:14.7]} 42... Kg7
{[%clk 0:01:13.8]} 43. Rb5 {[%clk 0:00:15.1]} 43... Ne6 {[%clk 0:01:11.6]} 44.
Nxe6+ {[%clk 0:00:13.7]} 44... Rxe6 {[%clk 0:01:12.5]} 45. Kf2 {[%clk
0:00:14.1]} 45... Rfe7 {[%clk 0:01:12]} 46. Rd2 {[%clk 0:00:10.7]} 46... c3
{[%clk 0:01:12.1]} 0-1

[Event "*** SCC Grand Prix: Titled Tuesday Blitz"]
[Site "Chess.com"]
[Date "2020.06.02"]
[Round "7"]
[White "AcostaPablo"]
[Black "Ceejay271"]
[Result "1-0"]
[WhiteElo "2600"]
[BlackElo "2410"]
[TimeControl "180+1"]
[EndTime "11:19:46 PDT"]
[Termination "AcostaPablo won by resignation"]

1. d4 {[%clk 0:03:00.9]} 1... Nf6 {[%clk 0:02:59.3]} 2. c4 {[%clk 0:03:01.8]}
2... e6 {[%clk 0:02:59.1]} 3. g3 {[%clk 0:03:02]} 3... d5 {[%clk 0:02:59.1]} 4.
Bg2 {[%clk 0:03:02.4]} 4... Bb4+ {[%clk 0:02:58.9]} 5. Bd2 {[%clk 0:03:01.8]}
5... Be7 {[%clk 0:02:58.8]} 6. Nf3 {[%clk 0:03:02.5]} 6... O-O {[%clk
0:02:59.4]} 7. O-O {[%clk 0:03:03.2]} 7... Nbd7 {[%clk 0:02:57]} 8. Qc2 {[%clk
0:03:03.3]} 8... Ne4 {[%clk 0:02:56.6]} 9. Bf4 {[%clk 0:03:02.5]} 9... c6 {[%clk
0:02:55.8]} 10. Rd1 {[%clk 0:03:03]} 10... f5 {[%clk 0:02:53.5]} 11. Ne1 {[%clk
0:03:02.9]} 11... g5 {[%clk 0:02:51.9]} 12. Bc1 {[%clk 0:03:02.6]} 12... Ndf6
{[%clk 0:02:49.2]} 13. Nd3 {[%clk 0:03:02.8]} 13... Nd6 {[%clk 0:02:46.5]} 14.
b3 {[%clk 0:03:03]} 14... Nf7 {[%clk 0:02:39.9]} 15. Nc3 {[%clk 0:02:59.2]}
15... dxc4 {[%clk 0:02:34.9]} 16. bxc4 {[%clk 0:02:59.1]} 16... Qxd4 {[%clk
0:02:31.9]} 17. c5 {[%clk 0:02:13.4]} 17... Qc4 {[%clk 0:02:18]} 18. Rb1 {[%clk
0:01:58.3]} 18... Nd5 {[%clk 0:02:15.9]} 19. Bxd5 {[%clk 0:01:33.2]} 19... exd5
{[%clk 0:02:11.2]} 20. Rb4 {[%clk 0:01:33.7]} 20... Be6 {[%clk 0:01:49.8]} 21.
Rxc4 {[%clk 0:01:33.1]} 21... dxc4 {[%clk 0:01:49.8]} 22. Nb2 {[%clk 0:01:33.3]}
22... Bxc5 {[%clk 0:01:49.4]} 23. Nca4 {[%clk 0:01:30.2]} 23... Be7 {[%clk
0:01:44.3]} 24. Be3 {[%clk 0:01:25.2]} 24... b5 {[%clk 0:01:19]} 25. Nc5 {[%clk
0:01:24.5]} 25... Bxc5 {[%clk 0:01:16]} 26. Bxc5 {[%clk 0:01:25.4]} 26... Rfd8
{[%clk 0:01:15]} 27. Qc3 {[%clk 0:01:19.1]} 27... Rxd1+ {[%clk 0:01:06.2]} 28.
Nxd1 {[%clk 0:01:20]} 28... a5 {[%clk 0:01:02.6]} 29. Qf6 {[%clk 0:01:16.8]}
29... Re8 {[%clk 0:00:59.9]} 30. Bd4 {[%clk 0:01:15.7]} 30... Kf8 {[%clk
0:00:56.3]} 31. Ne3 {[%clk 0:01:15.2]} 31... b4 {[%clk 0:00:50.6]} 32. Nxf5
{[%clk 0:01:00.8]} 32... Bxf5 {[%clk 0:00:49.6]} 33. Qxf5 {[%clk 0:01:01.7]}
33... c3 {[%clk 0:00:49.4]} 34. Qxh7 {[%clk 0:00:59.2]} 34... Rxe2 {[%clk
0:00:44.5]} 35. Bc5+ {[%clk 0:00:57.7]} 35... Ke8 {[%clk 0:00:44]} 36. Qg8+
{[%clk 0:00:57.5]} 36... Kd7 {[%clk 0:00:43]} 37. Qxf7+ {[%clk 0:00:58.1]} 37...
Kc8 {[%clk 0:00:43.2]} 38. Qg8+ {[%clk 0:00:55]} 38... Kb7 {[%clk 0:00:40.9]}
39. Kg2 {[%clk 0:00:32.2]} 39... c2 {[%clk 0:00:39.7]} 40. Qc4 {[%clk
0:00:27.1]} 40... Rd2 {[%clk 0:00:33.2]} 41. Be3 {[%clk 0:00:25.5]} 1-0

[Event "*** SCC Grand Prix: Titled Tuesday Blitz"]
[Site "Chess.com"]
[Date "2020.06.02"]
[Round "7"]
[White "Lovinski"]
[Black "goldenpuppy"]
[Result "1-0"]
[WhiteElo "2362"]
[BlackElo "2180"]
[TimeControl "180+1"]
[EndTime "11:19:47 PDT"]
[Termination "Lovinski won by checkmate"]

1. Nf3 {[%clk 0:03:00.9]} 1... c5 {[%clk 0:02:59.2]} 2. g3 {[%clk 0:03:01]} 2...
g6 {[%clk 0:02:39.6]} 3. c4 {[%clk 0:02:59.5]} 3... Bg7 {[%clk 0:02:39.8]} 4.
Bg2 {[%clk 0:02:59.7]} 4... d6 {[%clk 0:02:40.4]} 5. Nc3 {[%clk 0:02:59.6]} 5...
e5 {[%clk 0:02:41]} 6. O-O {[%clk 0:02:59.4]} 6... Nc6 {[%clk 0:02:41.7]} 7. a3
{[%clk 0:02:57.4]} 7... Nge7 {[%clk 0:02:42.2]} 8. Rb1 {[%clk 0:02:57.6]} 8...
a5 {[%clk 0:02:39.8]} 9. Ne1 {[%clk 0:02:57.5]} 9... O-O {[%clk 0:02:38.9]} 10.
Nc2 {[%clk 0:02:57.9]} 10... f5 {[%clk 0:02:39]} 11. b4 {[%clk 0:02:56.1]} 11...
axb4 {[%clk 0:02:39]} 12. axb4 {[%clk 0:02:57]} 12... Be6 {[%clk 0:02:39.1]} 13.
bxc5 {[%clk 0:02:51.3]} 13... dxc5 {[%clk 0:02:33.1]} 14. Rxb7 {[%clk 0:02:51]}
14... Rc8 {[%clk 0:02:33.1]} 15. d3 {[%clk 0:02:48.4]} 15... e4 {[%clk
0:02:33.3]} 16. Nd5 {[%clk 0:02:38.6]} 16... Nxd5 {[%clk 0:02:26.6]} 17. cxd5
{[%clk 0:02:38.7]} 17... Bxd5 {[%clk 0:02:27]} 18. dxe4 {[%clk 0:02:37.9]} 18...
Bxe4 {[%clk 0:02:25.2]} 19. Bxe4 {[%clk 0:02:26.1]} 19... fxe4 {[%clk
0:02:23.5]} 20. Rd7 {[%clk 0:02:20.6]} 20... Qf6 {[%clk 0:02:19.5]} 21. Qd5+
{[%clk 0:02:20.6]} 21... Kh8 {[%clk 0:02:12.7]} 22. Qxe4 {[%clk 0:02:08.4]}
22... Rcd8 {[%clk 0:02:05.4]} 23. Rxd8 {[%clk 0:02:03.6]} 23... Rxd8 {[%clk
0:02:04.6]} 24. Be3 {[%clk 0:02:00]} 24... Nd4 {[%clk 0:02:02.3]} 25. Nxd4
{[%clk 0:01:56.7]} 25... cxd4 {[%clk 0:02:02.5]} 26. Bf4 {[%clk 0:01:56.4]}
26... g5 {[%clk 0:01:57.5]} 27. Bc1 {[%clk 0:01:49.3]} 27... Qb6 {[%clk
0:01:51.5]} 28. Bxg5 {[%clk 0:01:44]} 28... Rf8 {[%clk 0:01:48.6]} 29. Bf4
{[%clk 0:01:40.7]} 29... Qc5 {[%clk 0:01:46.3]} 30. Rd1 {[%clk 0:01:38.6]} 30...
Rc8 {[%clk 0:01:40.8]} 31. Kg2 {[%clk 0:01:38.5]} 31... Rf8 {[%clk 0:01:34.9]}
32. h4 {[%clk 0:01:37.4]} 32... Qh5 {[%clk 0:01:32.5]} 33. Rd3 {[%clk
0:01:27.8]} 33... Qg4 {[%clk 0:01:31.8]} 34. Kh2 {[%clk 0:01:20.1]} 34... Qd7
{[%clk 0:01:23.3]} 35. Kg2 {[%clk 0:01:17.9]} 35... Qg4 {[%clk 0:01:22.5]} 36.
Qf3 {[%clk 0:01:17.9]} 36... Qf5 {[%clk 0:01:19.3]} 37. Bd6 {[%clk 0:01:07.2]}
37... Qxf3+ {[%clk 0:01:10.4]} 38. Rxf3 {[%clk 0:01:08.1]} 38... Rd8 {[%clk
0:01:11]} 39. Be7 {[%clk 0:01:02.8]} 39... Re8 {[%clk 0:01:10.1]} 40. Bf6 {[%clk
0:00:58.1]} 40... Rxe2 {[%clk 0:01:09.4]} 41. Bxg7+ {[%clk 0:00:55.6]} 41...
Kxg7 {[%clk 0:01:10.3]} 42. Rd3 {[%clk 0:00:54.9]} 42... Re4 {[%clk 0:01:09.7]}
43. Kf3 {[%clk 0:00:55.3]} 43... Re1 {[%clk 0:01:06.2]} 44. Rxd4 {[%clk
0:00:55.2]} 44... Rf1 {[%clk 0:01:06.6]} 45. Rf4 {[%clk 0:00:54.6]} 45... Re1
{[%clk 0:01:06.4]} 46. Kg4 {[%clk 0:00:54.9]} 46... Re5 {[%clk 0:01:06.5]} 47.
h5 {[%clk 0:00:54.8]} 47... Kh6 {[%clk 0:01:06.1]} 48. Rf6+ {[%clk 0:00:54.7]}
48... Kg7 {[%clk 0:01:06]} 49. Ra6 {[%clk 0:00:54.9]} 49... Re4+ {[%clk
0:01:06.2]} 50. f4 {[%clk 0:00:55.1]} 50... Re3 {[%clk 0:01:06.2]} 51. Kh4
{[%clk 0:00:54.8]} 51... Re1 {[%clk 0:01:05.9]} 52. Kg5 {[%clk 0:00:51.3]} 52...
Re7 {[%clk 0:01:05.1]} 53. h6+ {[%clk 0:00:49.8]} 53... Kg8 {[%clk 0:01:04.9]}
54. g4 {[%clk 0:00:48.8]} 54... Re4 {[%clk 0:01:03.2]} 55. f5 {[%clk 0:00:48.1]}
55... Kf7 {[%clk 0:01:02.4]} 56. Ra7+ {[%clk 0:00:48]} 56... Kg8 {[%clk
0:01:02.6]} 57. Kf6 {[%clk 0:00:45]} 57... Rxg4 {[%clk 0:00:58.4]} 58. Ra8#
{[%clk 0:00:44.2]} 1-0

[Event "*** SCC Grand Prix: Titled Tuesday Blitz"]
[Site "Chess.com"]
[Date "2020.06.02"]
[Round "7"]
[White "Zq1"]
[Black "Matibar"]
[Result "0-1"]
[WhiteElo "2537"]
[BlackElo "2701"]
[TimeControl "180+1"]
[EndTime "11:19:48 PDT"]
[Termination "Matibar won by resignation"]

1. d4 {[%clk 0:03:00.9]} 1... f5 {[%clk 0:02:57.3]} 2. Nf3 {[%clk 0:02:59.7]}
2... g6 {[%clk 0:02:55.4]} 3. h4 {[%clk 0:02:58]} 3... Bg7 {[%clk 0:02:52.3]} 4.
h5 {[%clk 0:02:57.7]} 4... d6 {[%clk 0:02:52.4]} 5. hxg6 {[%clk 0:02:51.6]} 5...
hxg6 {[%clk 0:02:52.3]} 6. Rxh8 {[%clk 0:02:51.3]} 6... Bxh8 {[%clk 0:02:53.2]}
7. Bg5 {[%clk 0:02:49.7]} 7... c6 {[%clk 0:02:49.8]} 8. e3 {[%clk 0:02:48.9]}
8... Qb6 {[%clk 0:02:49.4]} 9. Qc1 {[%clk 0:02:42]} 9... Be6 {[%clk 0:02:48.6]}
10. Nbd2 {[%clk 0:02:40.1]} 10... Nd7 {[%clk 0:02:48.5]} 11. c3 {[%clk
0:02:39.2]} 11... O-O-O {[%clk 0:02:37.8]} 12. Nc4 {[%clk 0:02:34.6]} 12... Qc7
{[%clk 0:02:35.4]} 13. a4 {[%clk 0:02:33.3]} 13... Ngf6 {[%clk 0:02:30.9]} 14.
a5 {[%clk 0:02:28]} 14... Bg7 {[%clk 0:02:31]} 15. a6 {[%clk 0:01:41]} 15... b6
{[%clk 0:02:30.4]} 16. b4 {[%clk 0:01:32.1]} 16... Rh8 {[%clk 0:02:29.8]} 17. b5
{[%clk 0:01:28.6]} 17... Rh1 {[%clk 0:02:27.6]} 18. Na3 {[%clk 0:01:20.2]} 18...
c5 {[%clk 0:02:20.3]} 19. Bxf6 {[%clk 0:01:08.7]} 19... Nxf6 {[%clk 0:02:12.8]}
20. Ng5 {[%clk 0:01:07.9]} 20... Bd5 {[%clk 0:02:08.8]} 21. Kd2 {[%clk
0:00:50.6]} 21... Bh6 {[%clk 0:02:00.9]} 22. Nh3 {[%clk 0:00:45.8]} 22... Ne4+
{[%clk 0:02:00.5]} 23. Kc2 {[%clk 0:00:44.7]} 23... cxd4 {[%clk 0:02:00]} 24. c4
{[%clk 0:00:36.4]} 24... Rxh3 {[%clk 0:01:43.4]} 25. gxh3 {[%clk 0:00:35.1]}
25... Nxf2 {[%clk 0:01:44]} 26. Kb3 {[%clk 0:00:29.7]} 26... Bxe3 {[%clk
0:01:43.6]} 27. Qb2 {[%clk 0:00:23]} 27... Bf7 {[%clk 0:01:35.6]} 28. Re1 {[%clk
0:00:22.7]} 28... e5 {[%clk 0:01:35.5]} 29. Bg2 {[%clk 0:00:20]} 29... Nd3
{[%clk 0:01:33.1]} 30. Qe2 {[%clk 0:00:15]} 30... Nxe1 {[%clk 0:01:07.1]} 31.
Bb7+ {[%clk 0:00:13.7]} 31... Kb8 {[%clk 0:01:05.3]} 32. Qxe1 {[%clk 0:00:14.1]}
32... d5 {[%clk 0:01:05.5]} 33. cxd5 {[%clk 0:00:07.7]} 33... Qc3+ {[%clk
0:01:01.7]} 34. Qxc3 {[%clk 0:00:06.8]} 34... dxc3 {[%clk 0:01:02.6]} 35. Kxc3
{[%clk 0:00:06.7]} 35... e4 {[%clk 0:00:59.4]} 36. Nc4 {[%clk 0:00:06.2]} 36...
Bc5 {[%clk 0:01:00]} 37. Ne5 {[%clk 0:00:05.3]} 37... Be8 {[%clk 0:00:57.6]} 38.
Kc4 {[%clk 0:00:04.4]} 38... Bd6 {[%clk 0:00:55.9]} 39. Nc6+ {[%clk 0:00:01.3]}
39... Bxc6 {[%clk 0:00:56.1]} 40. bxc6 {[%clk 0:00:01.5]} 40... Kc7 {[%clk
0:00:56.3]} 41. Kd4 {[%clk 0:00:01.6]} 41... b5 {[%clk 0:00:56.2]} 42. Ke3
{[%clk 0:00:01.5]} 42... b4 {[%clk 0:00:56.5]} 0-1

[Event "*** SCC Grand Prix: Titled Tuesday Blitz"]
[Site "Chess.com"]
[Date "2020.06.02"]
[Round "7"]
[White "shineatchess"]
[Black "KejJaj"]
[Result "0-1"]
[WhiteElo "2189"]
[BlackElo "2082"]
[TimeControl "180+1"]
[EndTime "11:19:48 PDT"]
[Termination "KejJaj won on time"]

1. e4 {[%clk 0:03:00.9]} 1... c5 {[%clk 0:02:59.1]} 2. Nf3 {[%clk 0:03:00.2]}
2... d6 {[%clk 0:02:59.2]} 3. Bb5+ {[%clk 0:02:59.2]} 3... Nc6 {[%clk
0:02:57.8]} 4. O-O {[%clk 0:02:57.6]} 4... Bg4 {[%clk 0:02:55.3]} 5. h3 {[%clk
0:02:49.8]} 5... Bxf3 {[%clk 0:02:49.5]} 6. Bxc6+ {[%clk 0:02:47.7]} 6... bxc6
{[%clk 0:02:48.2]} 7. Qxf3 {[%clk 0:02:47.6]} 7... e5 {[%clk 0:02:48]} 8. d3
{[%clk 0:02:39.3]} 8... g6 {[%clk 0:02:28.3]} 9. Nc3 {[%clk 0:02:27.2]} 9... Bg7
{[%clk 0:02:26.6]} 10. Qg3 {[%clk 0:02:25.7]} 10... Ne7 {[%clk 0:02:22.6]} 11.
f4 {[%clk 0:02:22.2]} 11... f5 {[%clk 0:02:05.4]} 12. fxe5 {[%clk 0:02:03.7]}
12... Bxe5 {[%clk 0:02:04.9]} 13. Bf4 {[%clk 0:01:20.3]} 13... Bxf4 {[%clk
0:02:03.4]} 14. Rxf4 {[%clk 0:01:18.7]} 14... O-O {[%clk 0:02:04.3]} 15. Raf1
{[%clk 0:01:16.4]} 15... Qd7 {[%clk 0:01:59.6]} 16. Qg5 {[%clk 0:01:10.8]} 16...
fxe4 {[%clk 0:01:46.3]} 17. Nxe4 {[%clk 0:01:05.9]} 17... Nd5 {[%clk 0:01:39.6]}
18. Rxf8+ {[%clk 0:00:33.6]} 18... Rxf8 {[%clk 0:01:40.5]} 19. Rxf8+ {[%clk
0:00:30.6]} 19... Kxf8 {[%clk 0:01:41.4]} 20. c4 {[%clk 0:00:30.5]} 20... Nb4
{[%clk 0:01:23.5]} 21. Qf4+ {[%clk 0:00:26.4]} 21... Qf7 {[%clk 0:01:14.7]} 22.
Qxd6+ {[%clk 0:00:25.4]} 22... Kg7 {[%clk 0:01:12.7]} 23. Qxc5 {[%clk
0:00:22.6]} 23... Nxa2 {[%clk 0:01:02.1]} 24. Qd4+ {[%clk 0:00:17]} 24... Kf8
{[%clk 0:01:00.3]} 25. Qd6+ {[%clk 0:00:09.1]} 25... Qe7 {[%clk 0:00:56.8]} 26.
Qf4+ {[%clk 0:00:06.5]} 26... Qf7 {[%clk 0:00:54.5]} 27. Qd6+ {[%clk 0:00:05.9]}
27... Kg7 {[%clk 0:00:52.4]} 28. Qxc6 {[%clk 0:00:04.3]} 28... Nc1 {[%clk
0:00:50.6]} 29. Qc5 {[%clk 0:00:01.2]} 29... h6 {[%clk 0:00:46.7]} 0-1

[Event "*** SCC Grand Prix: Titled Tuesday Blitz"]
[Site "Chess.com"]
[Date "2020.06.02"]
[Round "7"]
[White "Dedic8"]
[Black "Vaathi_Coming"]
[Result "1-0"]
[WhiteElo "2744"]
[BlackElo "2857"]
[TimeControl "180+1"]
[EndTime "11:19:49 PDT"]
[Termination "Dedic8 won on time"]

1. e4 {[%clk 0:03:00.9]} 1... c5 {[%clk 0:02:42.6]} 2. Nf3 {[%clk 0:03:01.3]}
2... Nc6 {[%clk 0:02:41.4]} 3. Bb5 {[%clk 0:03:01.2]} 3... g6 {[%clk 0:02:37.6]}
4. O-O {[%clk 0:03:00.9]} 4... Bg7 {[%clk 0:02:37.5]} 5. c3 {[%clk 0:03:01.5]}
5... Nf6 {[%clk 0:02:36.4]} 6. Re1 {[%clk 0:03:02]} 6... O-O {[%clk 0:02:36.5]}
7. d4 {[%clk 0:03:02.5]} 7... d5 {[%clk 0:02:37.1]} 8. e5 {[%clk 0:03:02.3]}
8... Ne4 {[%clk 0:02:37]} 9. Bxc6 {[%clk 0:03:02.3]} 9... bxc6 {[%clk
0:02:37.2]} 10. Be3 {[%clk 0:03:02.9]} 10... Rb8 {[%clk 0:02:32.1]} 11. Qc1
{[%clk 0:03:01.4]} 11... Qb6 {[%clk 0:02:13.3]} 12. b3 {[%clk 0:03:00]} 12...
cxd4 {[%clk 0:02:13.4]} 13. cxd4 {[%clk 0:03:00.2]} 13... f6 {[%clk 0:02:02.7]}
14. Nc3 {[%clk 0:02:53.2]} 14... Bf5 {[%clk 0:02:00.3]} 15. Na4 {[%clk
0:02:52.2]} 15... Qa6 {[%clk 0:01:59.4]} 16. Qa3 {[%clk 0:02:36.6]} 16... fxe5
{[%clk 0:01:33.5]} 17. Nxe5 {[%clk 0:02:32]} 17... c5 {[%clk 0:01:30.8]} 18.
Rac1 {[%clk 0:02:29.1]} 18... Rbc8 {[%clk 0:00:33]} 19. f3 {[%clk 0:02:25.9]}
19... cxd4 {[%clk 0:00:28.1]} 20. Rxc8 {[%clk 0:01:52.5]} 20... Rxc8 {[%clk
0:00:20.5]} 21. Bxd4 {[%clk 0:01:52.3]} 21... Nd6 {[%clk 0:00:20.4]} 22. Qb4
{[%clk 0:01:50]} 22... Qb5 {[%clk 0:00:13.6]} 23. Qd2 {[%clk 0:01:12.7]} 23...
Rc2 {[%clk 0:00:12.8]} 24. Qe3 {[%clk 0:01:13.4]} 24... Bf6 {[%clk 0:00:04.9]}
25. Nc3 {[%clk 0:01:07.3]} 25... Qb7 {[%clk 0:00:04.1]} 26. g4 {[%clk
0:01:01.4]} 26... Bc8 {[%clk 0:00:02.6]} 27. Re2 {[%clk 0:00:46.1]} 27... Rxe2
{[%clk 0:00:02.5]} 28. Qxe2 {[%clk 0:00:47]} 28... Kg7 {[%clk 0:00:02]} 29. Qe3
{[%clk 0:00:45]} 29... Kg8 {[%clk 0:00:02.3]} 30. Nd3 {[%clk 0:00:43.8]} 30...
Bxd4 {[%clk 0:00:01.4]} 31. Qxd4 {[%clk 0:00:44.7]} 31... Qc7 {[%clk 0:00:01.9]}
32. Nxd5 {[%clk 0:00:44.3]} 32... Qb7 {[%clk 0:00:02.2]} 33. Nc5 {[%clk
0:00:43.9]} 33... Qb5 {[%clk 0:00:01.2]} 34. Nxe7+ {[%clk 0:00:44]} 1-0

[Event "*** SCC Grand Prix: Titled Tuesday Blitz"]
[Site "Chess.com"]
[Date "2020.06.02"]
[Round "7"]
[White "mohssenbinaddi"]
[Black "DishonorOnYourCow"]
[Result "0-1"]
[WhiteElo "2067"]
[BlackElo "2294"]
[TimeControl "180+1"]
[EndTime "11:19:51 PDT"]
[Termination "DishonorOnYourCow won by resignation"]

1. Nf3 {[%clk 0:02:55.2]} 1... d5 {[%clk 0:02:58.9]} 2. g3 {[%clk 0:02:56.1]}
2... Nf6 {[%clk 0:02:58.6]} 3. Bg2 {[%clk 0:02:57]} 3... g6 {[%clk 0:02:58.5]}
4. O-O {[%clk 0:02:55.9]} 4... Bg7 {[%clk 0:02:58.6]} 5. d4 {[%clk 0:02:56.8]}
5... O-O {[%clk 0:02:58.7]} 6. c4 {[%clk 0:02:57.7]} 6... dxc4 {[%clk
0:02:58.9]} 7. Na3 {[%clk 0:02:57.8]} 7... c3 {[%clk 0:02:59.1]} 8. bxc3 {[%clk
0:02:58.7]} 8... c5 {[%clk 0:02:59.3]} 9. Rb1 {[%clk 0:02:58.8]} 9... Nc6 {[%clk
0:02:57.8]} 10. e3 {[%clk 0:02:58.5]} 10... Nd5 {[%clk 0:02:26.4]} 11. Bd2
{[%clk 0:02:53.8]} 11... cxd4 {[%clk 0:02:23.2]} 12. cxd4 {[%clk 0:02:52.5]}
12... Nb6 {[%clk 0:02:23.1]} 13. Rb5 {[%clk 0:02:30.9]} 13... Bf5 {[%clk
0:02:12.7]} 14. Qb3 {[%clk 0:02:18.9]} 14... Be6 {[%clk 0:02:02.7]} 15. Qb1
{[%clk 0:02:13.3]} 15... Nc4 {[%clk 0:01:53.2]} 16. Nxc4 {[%clk 0:02:04.4]}
16... Bxc4 {[%clk 0:01:52.6]} 17. Rxb7 {[%clk 0:02:05]} 17... Bxf1 {[%clk
0:01:50.7]} 18. Qxf1 {[%clk 0:01:59.8]} 18... Rb8 {[%clk 0:01:46.3]} 19. Qa6
{[%clk 0:01:58.8]} 19... Rxb7 {[%clk 0:01:43.2]} 20. Qxb7 {[%clk 0:01:57.7]}
20... Qb6 {[%clk 0:01:43.3]} 21. Qd7 {[%clk 0:01:44.7]} 21... Rd8 {[%clk
0:01:34.4]} 22. Qg4 {[%clk 0:01:40]} 22... e5 {[%clk 0:01:18.8]} 23. h4 {[%clk
0:01:24.7]} 23... exd4 {[%clk 0:01:16.6]} 24. exd4 {[%clk 0:01:24.7]} 24... Nxd4
{[%clk 0:01:11.1]} 25. Bg5 {[%clk 0:01:20.3]} 25... Nxf3+ {[%clk 0:00:43.2]} 26.
Bxf3 {[%clk 0:01:17.1]} 26... Bf6 {[%clk 0:00:42.5]} 27. Be3 {[%clk 0:01:13.7]}
27... Qb1+ {[%clk 0:00:37.8]} 28. Kg2 {[%clk 0:01:13.3]} 28... Qxa2 {[%clk
0:00:37.3]} 29. h5 {[%clk 0:01:13.9]} 29... Qa5 {[%clk 0:00:31.1]} 30. hxg6
{[%clk 0:01:12.1]} 30... hxg6 {[%clk 0:00:32]} 31. Be4 {[%clk 0:01:10.7]} 31...
a6 {[%clk 0:00:26.8]} 32. Qf3 {[%clk 0:00:59.5]} 32... Bg5 {[%clk 0:00:20.5]}
33. Ba7 {[%clk 0:00:52.8]} 33... Qc7 {[%clk 0:00:18.8]} 34. Qg4 {[%clk
0:00:39.9]} 34... Qxa7 {[%clk 0:00:16.8]} 35. Qxg5 {[%clk 0:00:39.9]} 35... Qd4
{[%clk 0:00:15.8]} 36. f3 {[%clk 0:00:32.8]} 36... Qd2+ {[%clk 0:00:15.4]} 0-1